[Event "Titled Tuesday Blitz March 28 Early 2023"]
[White "Benevides Demasi, Joao Otavio"]
[Black "Nurmanova, Alua"]
[WhiteFideId "30916224"]
[BlackFideId "13729390"]
[WhiteElo "2102"]
[BlackElo "2253"]
[Result "1-0"]
[Round "01"]
[TimeControl "180+2"]
[Date "2023.03.28"]
[WhiteClock "0:01:09"]
[BlackClock "0:01:04"]

1. d3 {[%clk 0:02:57]}  Nf6 {[%clk 0:02:59]} 2. g3 {[%clk 0:02:58]}  d5 {[%clk 0:02:59]} 3. Nf3 {[%clk 0:02:58]}  c5 {[%clk 0:02:59]} 4. Bg2 {[%clk 0:02:59]}  g6 {[%clk 0:02:59]} 5. O-O {[%clk 0:02:59]}  Bg7 {[%clk 0:02:59]} 6. c4 {[%clk 0:03:00]}  O-O {[%clk 0:02:59]} 7. Nc3 {[%clk 0:03:01]}  d4 {[%clk 0:02:58]} 8. Na4 {[%clk 0:03:01]}  Na6 {[%clk 0:02:58]} 9. a3 {[%clk 0:03:01]}  Re8 {[%clk 0:02:57]} 10. Rb1 {[%clk 0:03:01]}  e5 {[%clk 0:02:53]} 11. b4 {[%clk 0:03:01]}  cxb4 {[%clk 0:02:52]} 12. axb4 {[%clk 0:03:01]}  Qc7 {[%clk 0:02:50]} 13. b5 {[%clk 0:03:00]}  Nc5 {[%clk 0:02:49]} 14. Ba3 {[%clk 0:02:57]}  Nfd7 {[%clk 0:02:47]} 15. Nxc5 {[%clk 0:02:40]}  Nxc5 {[%clk 0:02:48]} 16. Ng5 {[%clk 0:02:34]}  h6 {[%clk 0:02:41]} 17. Ne4 {[%clk 0:02:29]}  Nxe4 {[%clk 0:02:38]} 18. Bxe4 {[%clk 0:02:29]}  Bh3 {[%clk 0:02:38]} 19. Re1 {[%clk 0:02:29]}  b6 {[%clk 0:02:30]} 20. Bxa8 {[%clk 0:02:26]}  Rxa8 {[%clk 0:02:30]} 21. Qc2 {[%clk 0:02:23]}  Qb7 {[%clk 0:02:26]} 22. f3 {[%clk 0:02:24]}  h5 {[%clk 0:02:24]} 23. c5 {[%clk 0:02:24]}  bxc5 {[%clk 0:02:23]} 24. Qxc5 {[%clk 0:02:23]}  Rc8 {[%clk 0:02:22]} 25. Qb4 {[%clk 0:02:09]}  Bh6 {[%clk 0:02:22]} 26. Bc1 {[%clk 0:02:07]}  Bf8 {[%clk 0:02:17]} 27. Qa4 {[%clk 0:02:01]}  f5 {[%clk 0:01:49]} 28. Qa6 {[%clk 0:01:47]}  Qxa6 {[%clk 0:01:33]} 29. bxa6 {[%clk 0:01:47]}  Rc2 {[%clk 0:01:34]} 30. Rb8 {[%clk 0:01:40]}  Ra2 {[%clk 0:01:26]} 31. Bh6 {[%clk 0:01:37]}  Rxa6 {[%clk 0:01:21]} 32. Bxf8 {[%clk 0:01:27]}  Kf7 {[%clk 0:01:19]} 33. Kf2 {[%clk 0:01:27]}  Ra2 {[%clk 0:01:16]} 34. Bc5 {[%clk 0:01:22]}  a5 {[%clk 0:01:05]} 35. Reb1 {[%clk 0:01:22]}  e4 {[%clk 0:01:05]} 36. fxe4 {[%clk 0:01:17]}  fxe4 {[%clk 0:01:05]} 37. dxe4 {[%clk 0:01:14]}  d3 {[%clk 0:01:04]} 38. R8b2 {[%clk 0:01:09]} 1-0


[Site "https://www.chess.com"]

[Event "Titled Tuesday Blitz March 28 Early 2023"]
[White "Dobre, Claudiu-Cristian"]
[Black "Maranhao,Jose Renato Ruiz"]
[WhiteFideId "1211854"]
[BlackFideId "2135175"]
[WhiteElo "2207"]
[BlackElo "1970"]
[Result "1-0"]
[Round "01"]
[TimeControl "180+2"]
[Date "2023.03.28"]
[WhiteClock "0:00:17"]
[BlackClock "0:00:01"]

1. e4 {[%clk 0:02:53]}  c6 {[%clk 0:02:59]} 2. Nf3 {[%clk 0:02:52]}  d5 {[%clk 0:02:59]} 3. exd5 {[%clk 0:02:52]}  cxd5 {[%clk 0:03:00]} 4. Ne5 {[%clk 0:02:53]}  Qc7 {[%clk 0:02:54]} 5. Bb5+ {[%clk 0:02:48]}  Nc6 {[%clk 0:02:54]} 6. d4 {[%clk 0:02:47]}  Bd7 {[%clk 0:02:47]} 7. Nxd7 {[%clk 0:02:46]}  Qxd7 {[%clk 0:02:48]} 8. O-O {[%clk 0:02:32]}  Nf6 {[%clk 0:02:48]} 9. c3 {[%clk 0:02:30]}  e6 {[%clk 0:02:47]} 10. Nd2 {[%clk 0:02:30]}  Be7 {[%clk 0:02:45]} 11. Nf3 {[%clk 0:02:30]}  O-O {[%clk 0:02:33]} 12. Ne5 {[%clk 0:02:24]}  Qc7 {[%clk 0:02:33]} 13. f4 {[%clk 0:02:24]}  Ne4 {[%clk 0:02:25]} 14. Bxc6 {[%clk 0:01:46]}  bxc6 {[%clk 0:02:24]} 15. f5 {[%clk 0:01:46]}  exf5 {[%clk 0:01:30]} 16. Rxf5 {[%clk 0:01:44]}  f6 {[%clk 0:01:23]} 17. Nd3 {[%clk 0:01:43]}  g6 {[%clk 0:01:14]} 18. Rf1 {[%clk 0:01:33]}  Bd6 {[%clk 0:01:10]} 19. Bf4 {[%clk 0:01:32]}  Rae8 {[%clk 0:01:02]} 20. Qf3 {[%clk 0:01:20]}  Bxf4 {[%clk 0:00:56]} 21. Qxf4 {[%clk 0:01:20]}  Qxf4 {[%clk 0:00:51]} 22. Nxf4 {[%clk 0:01:20]}  Re7 {[%clk 0:00:36]} 23. Rae1 {[%clk 0:01:02]}  Rb8 {[%clk 0:00:26]} 24. Re2 {[%clk 0:01:02]}  Reb7 {[%clk 0:00:25]} 25. Nd3 {[%clk 0:00:59]}  Re8 {[%clk 0:00:17]} 26. Nc5 {[%clk 0:00:57]}  Rbe7 {[%clk 0:00:17]} 27. Nxe4 {[%clk 0:00:57]}  Rxe4 {[%clk 0:00:17]} 28. Rxe4 {[%clk 0:00:57]}  Rxe4 {[%clk 0:00:14]} 29. Rxf6 {[%clk 0:00:57]}  Re1+ {[%clk 0:00:12]} 30. Kf2 {[%clk 0:00:55]}  Rb1 {[%clk 0:00:12]} 31. b4 {[%clk 0:00:55]}  Rb2+ {[%clk 0:00:12]} 32. Kf3 {[%clk 0:00:55]}  Rxa2 {[%clk 0:00:13]} 33. Rxc6 {[%clk 0:00:55]}  a5 {[%clk 0:00:08]} 34. b5 {[%clk 0:00:47]}  Rb2 {[%clk 0:00:03]} 35. Rc5 {[%clk 0:00:46]}  a4 {[%clk 0:00:02]} 36. Rxd5 {[%clk 0:00:44]}  a3 {[%clk 0:00:02]} 37. b6 {[%clk 0:00:44]}  Rxb6 {[%clk 0:00:02]} 38. Ra5 {[%clk 0:00:43]}  Rb3 {[%clk 0:00:03]} 39. Ke4 {[%clk 0:00:41]}  Rxc3 {[%clk 0:00:03]} 40. Ra7 {[%clk 0:00:41]}  Rc2 {[%clk 0:00:02]} 41. g4 {[%clk 0:00:40]}  Rxh2 {[%clk 0:00:02]} 42. d5 {[%clk 0:00:39]}  a2 {[%clk 0:00:01]} 43. Ke5 {[%clk 0:00:40]}  Rd2 {[%clk 0:00:01]} 44. d6 {[%clk 0:00:39]}  Re2+ {[%clk 0:00:02]} 45. Kf6 {[%clk 0:00:38]}  Rf2+ {[%clk 0:00:02]} 46. Ke6 {[%clk 0:00:37]}  Re2+ {[%clk 0:00:03]} 47. Kd7 {[%clk 0:00:37]}  Rg2 {[%clk 0:00:01]} 48. Kc6 {[%clk 0:00:28]}  Rxg4 {[%clk 0:00:01]} 49. Rxa2 {[%clk 0:00:23]}  Rd4 {[%clk 0:00:01]} 50. Ra8+ {[%clk 0:00:22]}  Kg7 {[%clk 0:00:01]} 51. d7 {[%clk 0:00:23]}  h5 {[%clk 0:00:02]} 52. d8=Q {[%clk 0:00:23]}  Rxd8 {[%clk 0:00:02]} 53. Rxd8 {[%clk 0:00:23]}  Kf6 {[%clk 0:00:02]} 54. Kd5 {[%clk 0:00:23]}  Kf5 {[%clk 0:00:02]} 55. Rf8+ {[%clk 0:00:23]}  Kg4 {[%clk 0:00:03]} 56. Ke4 {[%clk 0:00:23]}  g5 {[%clk 0:00:03]} 57. Ke3 {[%clk 0:00:22]}  Kg3 {[%clk 0:00:02]} 58. Rf3+ {[%clk 0:00:21]}  Kg2 {[%clk 0:00:01]} 59. Rf5 {[%clk 0:00:21]}  g4 {[%clk 0:00:01]} 60. Rxh5 {[%clk 0:00:21]}  g3 {[%clk 0:00:02]} 61. Kf4 {[%clk 0:00:20]}  Kf2 {[%clk 0:00:02]} 62. Ra5 {[%clk 0:00:20]}  g2 {[%clk 0:00:02]} 63. Ra2+ {[%clk 0:00:20]}  Kf1 {[%clk 0:00:02]} 64. Kf3 {[%clk 0:00:16]}  g1=N+ {[%clk 0:00:01]} 65. Ke3 {[%clk 0:00:17]} 1-0


[Site "https://www.chess.com"]

[Event "Titled Tuesday Blitz March 28 Early 2023"]
[White "hsd2016"]
[Black "Defend1r"]
[WhiteElo "1937"]
[BlackElo "2540"]
[Result "1-0"]
[Round "01"]
[TimeControl "180+2"]
[Date "2023.03.28"]
[WhiteClock "0:00:08"]
[BlackClock "0:00:45"]

1. e4 {[%clk 0:03:00]}  c5 {[%clk 0:02:59]} 2. Nf3 {[%clk 0:03:01]}  d6 {[%clk 0:03:00]} 3. d4 {[%clk 0:03:01]}  cxd4 {[%clk 0:03:01]} 4. Nxd4 {[%clk 0:03:02]}  Nf6 {[%clk 0:03:02]} 5. Nc3 {[%clk 0:03:02]}  a6 {[%clk 0:03:02]} 6. Be2 {[%clk 0:03:01]}  e5 {[%clk 0:03:02]} 7. Nf3 {[%clk 0:02:59]}  Be7 {[%clk 0:03:02]} 8. O-O {[%clk 0:02:59]}  O-O {[%clk 0:03:02]} 9. h3 {[%clk 0:02:59]}  Be6 {[%clk 0:03:02]} 10. Be3 {[%clk 0:02:58]}  h6 {[%clk 0:02:59]} 11. a4 {[%clk 0:02:58]}  Nbd7 {[%clk 0:02:57]} 12. Qd2 {[%clk 0:02:53]}  Qb8 {[%clk 0:02:55]} 13. Nd5 {[%clk 0:02:29]}  Nxd5 {[%clk 0:02:45]} 14. exd5 {[%clk 0:02:30]}  Bf5 {[%clk 0:02:45]} 15. c4 {[%clk 0:02:20]}  Bh7 {[%clk 0:02:44]} 16. Rfe1 {[%clk 0:02:04]}  f5 {[%clk 0:02:42]} 17. Qb4 {[%clk 0:02:02]}  f4 {[%clk 0:02:37]} 18. Bb6 {[%clk 0:01:55]}  Nxb6 {[%clk 0:02:32]} 19. Qxb6 {[%clk 0:01:56]}  Bd8 {[%clk 0:02:32]} 20. Qb4 {[%clk 0:01:54]}  a5 {[%clk 0:02:32]} 21. Qc3 {[%clk 0:01:53]}  Bb6 {[%clk 0:02:31]} 22. Bd3 {[%clk 0:01:47]}  Bxd3 {[%clk 0:02:28]} 23. Qxd3 {[%clk 0:01:48]}  Qd8 {[%clk 0:02:26]} 24. Qe4 {[%clk 0:01:47]}  Rc8 {[%clk 0:02:25]} 25. b3 {[%clk 0:01:47]}  Bc5 {[%clk 0:02:25]} 26. Re2 {[%clk 0:01:43]}  Rf6 {[%clk 0:02:25]} 27. Nd2 {[%clk 0:01:38]}  Qb6 {[%clk 0:02:24]} 28. Qf3 {[%clk 0:01:37]}  Bd4 {[%clk 0:02:15]} 29. Rd1 {[%clk 0:01:32]}  Rcf8 {[%clk 0:02:07]} 30. Ne4 {[%clk 0:01:32]}  Rf5 {[%clk 0:02:06]} 31. Kh2 {[%clk 0:01:20]}  h5 {[%clk 0:02:05]} 32. Rd3 {[%clk 0:01:18]}  Kh7 {[%clk 0:02:04]} 33. h4 {[%clk 0:01:03]}  Kg8 {[%clk 0:01:50]} 34. Ng5 {[%clk 0:01:02]}  g6 {[%clk 0:01:50]} 35. Ne6 {[%clk 0:01:01]}  R8f7 {[%clk 0:01:49]} 36. Nxd4 {[%clk 0:01:00]}  exd4 {[%clk 0:01:50]} 37. Re4 {[%clk 0:01:01]}  Qd8 {[%clk 0:01:49]} 38. Qh3 {[%clk 0:00:45]}  Re7 {[%clk 0:01:42]} 39. Rdxd4 {[%clk 0:00:42]}  Qe8 {[%clk 0:01:42]} 40. Rxe7 {[%clk 0:00:37]}  Qxe7 {[%clk 0:01:43]} 41. Qf3 {[%clk 0:00:37]}  Qxh4+ {[%clk 0:01:43]} 42. Kg1 {[%clk 0:00:37]}  Re5 {[%clk 0:01:39]} 43. Re4 {[%clk 0:00:37]}  Qf6 {[%clk 0:01:39]} 44. Rxf4 {[%clk 0:00:33]}  Qe7 {[%clk 0:01:34]} 45. g3 {[%clk 0:00:28]}  Kg7 {[%clk 0:01:34]} 46. Kg2 {[%clk 0:00:22]}  b6 {[%clk 0:01:24]} 47. Qc3 {[%clk 0:00:22]}  Kh6 {[%clk 0:01:24]} 48. Qd2 {[%clk 0:00:18]}  Kg7 {[%clk 0:01:23]} 49. Qc3 {[%clk 0:00:19]}  Kh7 {[%clk 0:01:24]} 50. Qf3 {[%clk 0:00:19]}  Kg8 {[%clk 0:01:23]} 51. Rf6 {[%clk 0:00:19]}  Kg7 {[%clk 0:01:23]} 52. Rf4 {[%clk 0:00:17]}  Qd7 {[%clk 0:01:06]} 53. Rf6 {[%clk 0:00:15]}  Rf5 {[%clk 0:01:04]} 54. Rxf5 {[%clk 0:00:15]}  gxf5 {[%clk 0:01:04]} 55. Qf4 {[%clk 0:00:16]}  Kg6 {[%clk 0:01:05]} 56. Qd4 {[%clk 0:00:14]}  Qd8 {[%clk 0:01:03]} 57. f3 {[%clk 0:00:11]}  Qe7 {[%clk 0:01:02]} 58. Kf2 {[%clk 0:00:09]}  Qg5 {[%clk 0:01:00]} 59. f4 {[%clk 0:00:09]}  Qd8 {[%clk 0:00:55]} 60. Qe3 {[%clk 0:00:09]}  Qd7 {[%clk 0:00:55]} 61. Qxb6 {[%clk 0:00:09]}  h4 {[%clk 0:00:55]} 62. gxh4 {[%clk 0:00:09]}  Qe7 {[%clk 0:00:56]} 63. Qe3 {[%clk 0:00:09]}  Qf6 {[%clk 0:00:54]} 64. Qg3+ {[%clk 0:00:09]}  Kh7 {[%clk 0:00:54]} 65. Kg2 {[%clk 0:00:07]}  Qb2+ {[%clk 0:00:53]} 66. Kh3 {[%clk 0:00:08]}  Qe2 {[%clk 0:00:52]} 67. h5 {[%clk 0:00:07]}  Qf1+ {[%clk 0:00:48]} 68. Kh4 {[%clk 0:00:08]}  Qh1+ {[%clk 0:00:46]} 69. Kg5 {[%clk 0:00:08]}  Qa1 {[%clk 0:00:43]} 70. Kxf5 {[%clk 0:00:08]}  Qb1+ {[%clk 0:00:43]} 71. Kg5 {[%clk 0:00:08]}  Qxb3 {[%clk 0:00:43]} 72. Qxb3 {[%clk 0:00:08]}  Kg7 {[%clk 0:00:43]} 73. Qb7+ {[%clk 0:00:07]}  Kf8 {[%clk 0:00:44]} 74. Kf6 {[%clk 0:00:07]}  Ke8 {[%clk 0:00:45]} 75. Qe7# {[%clk 0:00:08]} 1-0


[Site "https://www.chess.com"]

[Event "Titled Tuesday Blitz March 28 Early 2023"]
[White "Kozlov, Gennady"]
[Black "Prado, Alexandra"]
[WhiteFideId "4191668"]
[BlackFideId "3301346"]
[WhiteElo "2356"]
[BlackElo "1759"]
[Result "1-0"]
[Round "01"]
[TimeControl "180+2"]
[Date "2023.03.28"]
[WhiteClock "0:02:34"]
[BlackClock "0:00:14"]

1. b3 {[%clk 0:02:59]}  d5 {[%clk 0:02:46]} 2. Bb2 {[%clk 0:02:59]}  Nc6 {[%clk 0:02:45]} 3. e3 {[%clk 0:02:53]}  e5 {[%clk 0:02:44]} 4. Bb5 {[%clk 0:02:53]}  Bd6 {[%clk 0:02:35]} 5. f4 {[%clk 0:02:48]}  Qe7 {[%clk 0:01:53]} 6. Nf3 {[%clk 0:02:47]}  f6 {[%clk 0:01:37]} 7. fxe5 {[%clk 0:02:46]}  fxe5 {[%clk 0:01:35]} 8. Bxc6+ {[%clk 0:02:44]}  bxc6 {[%clk 0:01:35]} 9. Nxe5 {[%clk 0:02:45]}  Bxe5 {[%clk 0:01:34]} 10. Qh5+ {[%clk 0:02:44]}  Kd8 {[%clk 0:01:01]} 11. Qxe5 {[%clk 0:02:45]}  Nf6 {[%clk 0:00:56]} 12. O-O {[%clk 0:02:43]}  Ba6 {[%clk 0:00:40]} 13. Rf4 {[%clk 0:02:35]}  Rf8 {[%clk 0:00:21]} 14. Qxe7+ {[%clk 0:02:33]}  Kxe7 {[%clk 0:00:20]} 15. Ba3+ {[%clk 0:02:34]}  Ke6 {[%clk 0:00:16]} 16. Bxf8 {[%clk 0:02:35]}  Rxf8 {[%clk 0:00:17]} 17. Nc3 {[%clk 0:02:35]}  g5 {[%clk 0:00:14]} 18. Rf2 {[%clk 0:02:34]} 1-0


[Site "https://www.chess.com"]

[Event "Titled Tuesday Blitz March 28 Early 2023"]
[White "So, Wesley"]
[Black "Schmakel, Sam"]
[WhiteFideId "5202213"]
[BlackFideId "2039311"]
[WhiteElo "2739"]
[BlackElo "2356"]
[Result "1-0"]
[Round "02"]
[TimeControl "180+2"]
[Date "2023.03.28"]
[WhiteClock "0:01:29"]
[BlackClock "0:00:11"]

1. d4 {[%clk 0:03:00]}  Nf6 {[%clk 0:02:59]} 2. Nf3 {[%clk 0:02:59]}  g6 {[%clk 0:02:59]} 3. Nbd2 {[%clk 0:02:58]}  d5 {[%clk 0:02:58]} 4. b3 {[%clk 0:02:57]}  Bg7 {[%clk 0:02:58]} 5. Bb2 {[%clk 0:02:57]}  O-O {[%clk 0:02:57]} 6. e3 {[%clk 0:02:57]}  c5 {[%clk 0:02:55]} 7. dxc5 {[%clk 0:02:57]}  Qa5 {[%clk 0:02:53]} 8. a3 {[%clk 0:02:55]}  Qxc5 {[%clk 0:02:52]} 9. c4 {[%clk 0:02:56]}  Rd8 {[%clk 0:02:40]} 10. Rc1 {[%clk 0:02:51]}  dxc4 {[%clk 0:02:13]} 11. Bxc4 {[%clk 0:02:52]}  Qh5 {[%clk 0:02:12]} 12. Ne5 {[%clk 0:02:40]}  Qxd1+ {[%clk 0:02:13]} 13. Rxd1 {[%clk 0:02:39]}  e6 {[%clk 0:02:14]} 14. Ke2 {[%clk 0:02:39]}  Nc6 {[%clk 0:01:26]} 15. Nxc6 {[%clk 0:02:30]}  bxc6 {[%clk 0:01:27]} 16. Nf3 {[%clk 0:02:30]}  Nd5 {[%clk 0:01:18]} 17. Bxg7 {[%clk 0:02:28]}  Kxg7 {[%clk 0:01:19]} 18. Rd3 {[%clk 0:02:21]}  Bb7 {[%clk 0:01:07]} 19. Rc1 {[%clk 0:02:19]}  Kf6 {[%clk 0:00:59]} 20. Nd2 {[%clk 0:02:17]}  Ke7 {[%clk 0:00:56]} 21. Ne4 {[%clk 0:02:17]}  Rab8 {[%clk 0:00:54]} 22. Nc5 {[%clk 0:02:07]}  Ba8 {[%clk 0:00:54]} 23. g3 {[%clk 0:02:05]}  a5 {[%clk 0:00:54]} 24. e4 {[%clk 0:01:52]}  Nb6 {[%clk 0:00:53]} 25. f4 {[%clk 0:01:48]}  Rxd3 {[%clk 0:00:39]} 26. Kxd3 {[%clk 0:01:38]}  Nd7 {[%clk 0:00:39]} 27. Kd4 {[%clk 0:01:36]}  Kd6 {[%clk 0:00:30]} 28. e5+ {[%clk 0:01:35]}  Ke7 {[%clk 0:00:30]} 29. Nxd7 {[%clk 0:01:34]}  Kxd7 {[%clk 0:00:31]} 30. Kc5 {[%clk 0:01:35]}  Kc7 {[%clk 0:00:29]} 31. Rd1 {[%clk 0:01:35]}  Bb7 {[%clk 0:00:29]} 32. Rd6 {[%clk 0:01:33]}  h6 {[%clk 0:00:20]} 33. g4 {[%clk 0:01:32]}  Re8 {[%clk 0:00:17]} 34. h4 {[%clk 0:01:30]}  Re7 {[%clk 0:00:17]} 35. Bd3 {[%clk 0:01:29]}  Re8 {[%clk 0:00:17]} 36. Be4 {[%clk 0:01:29]}  g5 {[%clk 0:00:10]} 37. fxg5 {[%clk 0:01:28]}  hxg5 {[%clk 0:00:11]} 38. h5 {[%clk 0:01:29]} 1-0


[Site "https://www.chess.com"]

[Event "Titled Tuesday Blitz March 28 Early 2023"]
[White "Naroditsky, Daniel"]
[Black "Iskusnyh, Sergei"]
[WhiteFideId "2026961"]
[BlackFideId "4120027"]
[WhiteElo "2633"]
[BlackElo "2492"]
[Result "1-0"]
[Round "02"]
[TimeControl "180+2"]
[Date "2023.03.28"]
[WhiteClock "0:00:37"]
[BlackClock "0:00:02"]

1. d4 {[%clk 0:02:57]}  d5 {[%clk 0:02:59]} 2. Nc3 {[%clk 0:02:56]}  Nf6 {[%clk 0:02:58]} 3. Bf4 {[%clk 0:02:56]}  c5 {[%clk 0:02:55]} 4. e4 {[%clk 0:02:56]}  Nxe4 {[%clk 0:02:53]} 5. Nxe4 {[%clk 0:02:56]}  dxe4 {[%clk 0:02:54]} 6. dxc5 {[%clk 0:02:57]}  Qa5+ {[%clk 0:02:52]} 7. c3 {[%clk 0:02:57]}  Qxc5 {[%clk 0:02:50]} 8. Qa4+ {[%clk 0:02:57]}  Nc6 {[%clk 0:02:47]} 9. Qxe4 {[%clk 0:02:55]}  g6 {[%clk 0:02:47]} 10. Nf3 {[%clk 0:02:53]}  Bg7 {[%clk 0:02:46]} 11. Rd1 {[%clk 0:02:54]}  O-O {[%clk 0:02:40]} 12. Be3 {[%clk 0:02:54]}  Qa5 {[%clk 0:02:35]} 13. Bc4 {[%clk 0:02:54]}  Ne5 {[%clk 0:02:13]} 14. Nxe5 {[%clk 0:02:32]}  Qxe5 {[%clk 0:02:11]} 15. Qxe5 {[%clk 0:02:13]}  Bxe5 {[%clk 0:02:10]} 16. O-O {[%clk 0:02:12]}  Bc7 {[%clk 0:01:25]} 17. Bc5 {[%clk 0:02:03]}  Bf5 {[%clk 0:01:03]} 18. Bxe7 {[%clk 0:01:59]}  Rfe8 {[%clk 0:01:03]} 19. Bf6 {[%clk 0:01:58]}  Be5 {[%clk 0:00:55]} 20. Bxe5 {[%clk 0:01:57]}  Rxe5 {[%clk 0:00:56]} 21. Rd2 {[%clk 0:01:30]}  Rc8 {[%clk 0:00:55]} 22. Bb3 {[%clk 0:01:30]}  Be6 {[%clk 0:00:47]} 23. Bxe6 {[%clk 0:01:26]}  Rxe6 {[%clk 0:00:47]} 24. Rfd1 {[%clk 0:01:26]}  Kg7 {[%clk 0:00:42]} 25. f3 {[%clk 0:01:26]}  Rb6 {[%clk 0:00:39]} 26. Kf2 {[%clk 0:01:25]}  h5 {[%clk 0:00:39]} 27. Re1 {[%clk 0:01:20]}  Rc7 {[%clk 0:00:38]} 28. Re4 {[%clk 0:01:20]}  a6 {[%clk 0:00:35]} 29. a4 {[%clk 0:01:20]}  Rb3 {[%clk 0:00:33]} 30. Ke2 {[%clk 0:01:17]}  b5 {[%clk 0:00:33]} 31. Kd1 {[%clk 0:01:11]}  bxa4 {[%clk 0:00:20]} 32. Rxa4 {[%clk 0:01:10]}  Rcb7 {[%clk 0:00:20]} 33. Kc1 {[%clk 0:01:09]}  R7b6 {[%clk 0:00:20]} 34. c4 {[%clk 0:01:09]}  h4 {[%clk 0:00:14]} 35. h3 {[%clk 0:01:04]}  Rc6 {[%clk 0:00:12]} 36. Rc2 {[%clk 0:01:02]}  Re3 {[%clk 0:00:12]} 37. Kd2 {[%clk 0:01:01]}  Re7 {[%clk 0:00:10]} 38. c5 {[%clk 0:00:54]}  Re5 {[%clk 0:00:09]} 39. Rac4 {[%clk 0:00:54]}  Rd5+ {[%clk 0:00:09]} 40. Ke3 {[%clk 0:00:55]}  Re6+ {[%clk 0:00:09]} 41. Re4 {[%clk 0:00:54]}  Rc6 {[%clk 0:00:09]} 42. Rec4 {[%clk 0:00:53]}  Re6+ {[%clk 0:00:09]} 43. Kf2 {[%clk 0:00:54]}  Rc6 {[%clk 0:00:07]} 44. b4 {[%clk 0:00:55]}  g5 {[%clk 0:00:07]} 45. Ra2 {[%clk 0:00:51]}  f6 {[%clk 0:00:06]} 46. Ke3 {[%clk 0:00:48]}  Kg6 {[%clk 0:00:06]} 47. Ke4 {[%clk 0:00:47]}  Rd1 {[%clk 0:00:05]} 48. Ke3 {[%clk 0:00:45]}  Re6+ {[%clk 0:00:05]} 49. Re4 {[%clk 0:00:46]}  Rc6 {[%clk 0:00:05]} 50. Ke2 {[%clk 0:00:45]}  Rd5 {[%clk 0:00:04]} 51. Rd2 {[%clk 0:00:45]}  Rf5 {[%clk 0:00:02]} 52. Ra2 {[%clk 0:00:37]} 1-0


[Site "https://www.chess.com"]

[Event "Titled Tuesday Blitz March 28 Early 2023"]
[White "polandchessplayer"]
[Black "Dubov, Daniil"]
[BlackFideId "24126055"]
[WhiteElo "2694"]
[BlackElo "2802"]
[Result "0-1"]
[Round "02"]
[TimeControl "180+2"]
[Date "2023.03.28"]
[WhiteClock "0:00:02"]
[BlackClock "0:00:49"]

1. c4 {[%clk 0:03:00]}  e5 {[%clk 0:02:59]} 2. Nc3 {[%clk 0:03:00]}  Nf6 {[%clk 0:03:00]} 3. Nf3 {[%clk 0:03:01]}  Nc6 {[%clk 0:03:00]} 4. e4 {[%clk 0:03:01]}  Bb4 {[%clk 0:02:59]} 5. d3 {[%clk 0:03:02]}  d6 {[%clk 0:03:00]} 6. a3 {[%clk 0:03:02]}  Bc5 {[%clk 0:03:00]} 7. b4 {[%clk 0:03:02]}  Bb6 {[%clk 0:03:00]} 8. Be3 {[%clk 0:03:03]}  O-O {[%clk 0:02:58]} 9. Be2 {[%clk 0:03:03]}  Nh5 {[%clk 0:02:58]} 10. Nd5 {[%clk 0:03:00]}  f5 {[%clk 0:02:56]} 11. O-O {[%clk 0:02:58]}  Nf4 {[%clk 0:02:50]} 12. Nxf4 {[%clk 0:02:47]}  exf4 {[%clk 0:02:49]} 13. Bxb6 {[%clk 0:02:41]}  axb6 {[%clk 0:02:48]} 14. exf5 {[%clk 0:02:41]}  Bxf5 {[%clk 0:02:48]} 15. d4 {[%clk 0:02:42]}  Qf6 {[%clk 0:02:40]} 16. Qd2 {[%clk 0:02:17]}  Rae8 {[%clk 0:02:38]} 17. Rae1 {[%clk 0:02:07]}  Be4 {[%clk 0:02:31]} 18. d5 {[%clk 0:02:02]}  Ne5 {[%clk 0:02:24]} 19. Nxe5 {[%clk 0:01:57]}  Rxe5 {[%clk 0:02:25]} 20. Bd3 {[%clk 0:01:51]}  Rfe8 {[%clk 0:02:13]} 21. Bxe4 {[%clk 0:01:43]}  Rxe4 {[%clk 0:02:14]} 22. Rxe4 {[%clk 0:01:00]}  Rxe4 {[%clk 0:02:15]} 23. f3 {[%clk 0:00:49]}  Qd4+ {[%clk 0:02:06]} 24. Qxd4 {[%clk 0:00:42]}  Rxd4 {[%clk 0:02:07]} 25. Rc1 {[%clk 0:00:39]}  Rd3 {[%clk 0:01:54]} 26. c5 {[%clk 0:00:35]}  bxc5 {[%clk 0:01:30]} 27. bxc5 {[%clk 0:00:36]}  Rxd5 {[%clk 0:01:31]} 28. cxd6 {[%clk 0:00:35]}  c6 {[%clk 0:01:31]} 29. a4 {[%clk 0:00:20]}  Rxd6 {[%clk 0:01:30]} 30. a5 {[%clk 0:00:19]}  Kf7 {[%clk 0:01:24]} 31. Rc4 {[%clk 0:00:18]}  g5 {[%clk 0:01:23]} 32. h4 {[%clk 0:00:17]}  h6 {[%clk 0:01:23]} 33. hxg5 {[%clk 0:00:17]}  hxg5 {[%clk 0:01:24]} 34. Rb4 {[%clk 0:00:14]}  Rd7 {[%clk 0:01:22]} 35. Kf2 {[%clk 0:00:13]}  Ke6 {[%clk 0:01:21]} 36. a6 {[%clk 0:00:12]}  b5 {[%clk 0:01:16]} 37. Re4+ {[%clk 0:00:09]}  Kd5 {[%clk 0:01:15]} 38. Re8 {[%clk 0:00:04]}  Ra7 {[%clk 0:01:15]} 39. Rg8 {[%clk 0:00:04]}  Rxa6 {[%clk 0:01:15]} 40. Rxg5+ {[%clk 0:00:05]}  Kd4 {[%clk 0:01:15]} 41. Rf5 {[%clk 0:00:05]}  Ra1 {[%clk 0:01:15]} 42. Rxf4+ {[%clk 0:00:04]}  Kd3 {[%clk 0:01:15]} 43. Rf8 {[%clk 0:00:04]}  b4 {[%clk 0:01:14]} 44. g4 {[%clk 0:00:05]}  b3 {[%clk 0:01:14]} 45. Rb8 {[%clk 0:00:05]}  Kc3 {[%clk 0:01:10]} 46. g5 {[%clk 0:00:06]}  b2 {[%clk 0:00:54]} 47. f4 {[%clk 0:00:06]}  b1=Q {[%clk 0:00:48]} 48. Rxb1 {[%clk 0:00:06]}  Rxb1 {[%clk 0:00:49]} 49. g6 {[%clk 0:00:06]}  Kd4 {[%clk 0:00:49]} 50. g7 {[%clk 0:00:02]}  Rb8 {[%clk 0:00:49]} 0-1


[Site "https://www.chess.com"]